[Event "DVM U12W 2021"]
[Site "Willingen"]
[Date "2022.08.14"]
[Round "3"]
[White "Striebeck, Liv"]
[Black "Kopylov, Diana"]
[Result "0-1"]
[ECO "B21"]
[WhiteElo "1003"]
[BlackElo "1108"]
[Annotator "NA RC"]
[PlyCount "90"]
[EventDate "2022.08.12"]
[EventType "team-tourn"]
[EventRounds "7"]
[EventCountry "GER"]
[SourceTitle "playchess.com"]
[Source "ChessBase"]
[SourceQuality "1"]
[TimeControl "40/5400+30:1800+30"]

1. e4 {[%emt 0:00:03]} c5 {[%emt 0:00:09]} 2. d4 {[%emt 0:00:06]} cxd4 {[%emt 0:00:35]} 3. c3 {[%emt 0:00:06]} dxc3 {[%emt 0:00:53]} 4. Nxc3 {[%emt 0:00:06]} d6 {[%emt 0:01:10]} 5. Bc4 {[%emt 0:00:23]} Nc6 {[%emt 0:10:06]} 6. Nf3 {[%emt 0:00:10]} g6 {[%emt 0:02:33]} 7. e5 {[%emt 0:06:15]} Bg7 {[%emt 0:16:27]} 8. exd6 {[%emt 0:07:48]} exd6 {[%emt 0:14:46]} 9. Ng5 {[%emt 0:13:34]} Qe7+ {[%emt 0:06:26]} 10. Be3 {[%emt 0:06:16]} Ne5 {[%emt 0:03:51]} 11. Nd5 {[%emt 0:16:04]} Qd8 {[%emt 0:08:03]} 12. Rc1 {[%emt 0:07:56]} Nxc4 {[%emt 0:03:58]} 13. Rxc4 {[%emt 0:00:10]} Qa5+ {[%emt 0:09:35]} 14. b4 {[%emt 0:02:32]} Qxa2 {[%emt 0:02:42]} 15. Qc1 {[%emt 0:03:31]} Bf5 {[%emt 0:03:23]} 16. O-O {[%emt 0:02:08]} Bb2 {[%emt 0:03:56]} 17. Nc7+ {[%emt 0:11:48]} Kf8 {[%emt 0:01:34]} 18. Nce6+ {[%emt 0:04:03]} Bxe6 {[%emt 0:03:18]} 19. Nxe6+ {[%emt 0:00:07]} fxe6 {[%emt 0:00:54]} 20. Rc8+ {[%emt 0:00:23]} Rxc8 {[%emt 0:00:17]} 21. Qxc8+ {[%emt 0:00:07]} Kf7 {[%emt 0:01:16]} 22. Qc7+ {[%emt 0:04:18]} Ne7 {[%emt 0:01:24]} 23. Bg5 {[%emt 0:01:10]} Re8 {[%emt 0:00:30]} 24. Qxd6 {[%emt 0:01:21]} Qd5 {[%emt 0:01:30]} 25. Qf4+ {[%emt 0:01:08]} Qf5 {[%emt 0:00:57]} 26. Qd2 {[%emt 0:01:27]} Be5 {[%emt 0:01:01]} 27. g3 {[%emt 0:02:12]} Nd5 {[%emt 0:00:48]} 28. Rb1 {[%emt 0:00:34]} Qxb1+ {[%emt 0:00:15]} 29. Kg2 {[%emt 0:00:14]} Qxb4 {[%emt 0:00:59]} 30. Qd1 {[%emt 0:00:39]} a5 {[%emt 0:00:01]} 31. Qf3+ {[%emt 0:00:23]} Bf6 {[%emt 0:00:51]} 32. Bxf6 {[%emt 0:00:42]} Nxf6 {[%emt 0:00:08]} 33. g4 {[%emt 0:00:16]} Qe4 {[%emt 0:00:11]} 34. Qxe4 {[%emt 0:00:30]} Nxe4 {[%emt 0:00:05]} 35. f3 {[%emt 0:00:07]} Nc3 {[%emt 0:00:14]} 36. Kg3 {[%emt 0:00:09]} a4 {[%emt 0:00:08]} 37. Kf2 {[%emt 0:00:09]} a3 {[%emt 0:00:08]} 38. Kg3 {[%emt 0:00:12]} a2 {[%emt 0:00:07]} 39. g5 {[%emt 0:00:22]} a1=Q {[%emt 0:00:11]} 40. Kf4 {[%emt 0:00:24]} e5+ {[%emt 0:00:22]} 41. Kg4 {[%emt 0:30:11]} Qa4+ {[%emt 0:31:24]} 42. Kg3 {[%emt 0:00:10]} Qf4+ {[%emt 0:00:21]} 43. Kg2 {[%emt 0:00:09]} Qxg5+ {[%emt 0:00:33]} 44. Kh3 {[%emt 0:00:17]} Rd8 {[%emt 0:00:58]} 45. f4 {[%emt 0:00:07]} Rd3# {[%emt 0:00:08]} 0-1

[Event "DVM U12W 2021"]
[Site "Willingen"]
[Date "2022.08.14"]
[Round "3"]
[White "Yan, Jenny"]
[Black "Marrufo, Adriana"]
[Result "1-0"]
[ECO "A13"]
[WhiteElo "984"]
[BlackElo "942"]
[Annotator "NA RC"]
[PlyCount "57"]
[EventDate "2022.08.12"]
[EventType "team-tourn"]
[EventRounds "7"]
[EventCountry "GER"]
[SourceTitle "playchess.com"]
[Source "ChessBase"]
[SourceQuality "1"]
[TimeControl "40/5400+30:1800+30"]

1. c4 {[%emt 0:00:02]} e6 {[%emt 0:04:38]} 2. g3 {[%emt 0:00:08]} e5 {[%emt 0:08:24]} 3. Bg2 {[%emt 0:00:28]} Nf6 {[%emt 0:03:06]} 4. d3 {[%emt 0:01:07]} Bc5 {[%emt 0:01:07]} 5. Nc3 {[%emt 0:01:40]} d6 {[%emt 0:01:17]} 6. Bd2 {[%emt 0:01:34]} Nc6 {[%emt 0:00:41]} 7. Nf3 {[%emt 0:01:10]} Be6 {[%emt 0:03:33]} 8. O-O {[%emt 0:01:37]} O-O {[%emt 0:00:12]} 9. Qb3 {[%emt 0:03:20]} Rb8 {[%emt 0:00:48]} 10. Nd5 {[%emt 0:02:18]} Nd4 {[%emt 0:05:42]} 11. Nxd4 {[%emt 0:01:01]} Bxd4 {[%emt 0:00:34]} 12. Nxf6+ {[%emt 0:00:22]} Qxf6 {[%emt 0:00:31]} 13. Be3 {[%emt 0:01:07]} b5 {[%emt 0:02:03]} 14. Qc2 {[%emt 0:01:22]} Rfc8 {[%emt 0:02:11]} 15. Bxd4 {[%emt 0:01:53]} exd4 {[%emt 0:00:34]} 16. cxb5 {[%emt 0:00:17]} Rxb5 {[%emt 0:00:36]} 17. b3 {[%emt 0:03:10]} Rc5 {[%emt 0:01:45]} 18. Qd2 {[%emt 0:02:19]} Rb8 {[%emt 0:01:10]} 19. Rac1 {[%emt 0:02:55]} Rh5 {[%emt 0:02:08]} 20. Rxc7 {[%emt 0:02:48]} Rh6 {[%emt 0:01:33]} 21. Rxa7 {[%emt 0:03:19]} Qe5 {[%emt 0:01:02]} 22. Qf4 {[%emt 0:00:58]} Qc5 {[%emt 0:01:44]} 23. Rb7 {[%emt 0:01:16]} Rxb7 {[%emt 0:01:33]} 24. Bxb7 {[%emt 0:00:10]} Qh5 {[%emt 0:01:55]} 25. h4 {[%emt 0:00:36]} Rg6 {[%emt 0:03:47]} 26. Qxd6 {[%emt 0:02:02]} h6 {[%emt 0:00:34]} 27. Qxd4 {[%emt 0:00:19]} Qxe2 {[%emt 0:01:12]} 28. Be4 {[%emt 0:00:25]} Rg4 {[%emt 0:01:12]} 29. Qd8# {[%emt 0:00:08]} 1-0

[Event "DVM U12W 2021"]
[Site "Willingen"]
[Date "2022.08.14"]
[Round "3"]
[White "Müller, Ariana"]
[Black "Daaboul, Dima"]
[Result "1-0"]
[ECO "B00"]
[WhiteElo "975"]
[BlackElo "882"]
[Annotator "NA RC"]
[PlyCount "97"]
[EventDate "2022.08.12"]
[EventType "team-tourn"]
[EventRounds "7"]
[EventCountry "GER"]
[SourceTitle "playchess.com"]
[Source "ChessBase"]
[SourceQuality "1"]
[TimeControl "40/5400+30:1800+30"]

1. e4 {[%emt 0:00:07]} b6 {[%emt 0:00:00]} 2. d4 {[%emt 0:00:10]} Bb7 {[%emt 0:00:00]} 3. Bd3 {[%emt 0:02:19]} Nf6 {[%emt 0:00:01]} 4. Qe2 {[%emt 0:01:04]} e6 {[%emt 0:00:21]} 5. Nf3 {[%emt 0:00:45]} Be7 {[%emt 0:00:35]} 6. h3 {[%emt 0:02:38]} O-O {[%emt 0:01:34]} 7. O-O {[%emt 0:02:56]} d6 {[%emt 0:01:02]} 8. Bf4 {[%emt 0:01:58]} Nbd7 {[%emt 0:02:00]} 9. Nbd2 {[%emt 0:02:17]} a6 {[%emt 0:03:40]} 10. Rfe1 {[%emt 0:07:32]} Ne8 {[%emt 0:08:30]} 11. Nc4 {[%emt 0:09:30]} f6 {[%emt 0:04:50]} 12. c3 {[%emt 0:06:01]} e5 {[%emt 0:01:18]} 13. Bg3 {[%emt 0:15:57]} c5 {[%emt 0:04:26]} 14. d5 {[%emt 0:02:57]} Nc7 {[%emt 0:02:18]} 15. Ne3 {[%emt 0:02:50]} a5 {[%emt 0:04:04]} 16. Nh4 {[%emt 0:08:57]} Qe8 {[%emt 0:02:35]} 17. Nef5 {[%emt 0:05:10]} b5 {[%emt 0:00:28]} 18. Qg4 {[%emt 0:01:04]} g6 {[%emt 0:04:45]} 19. Nh6+ {[%emt 0:01:18]} Kg7 {[%emt 0:06:41]} 20. N6f5+ {[%emt 0:01:01]} Kh8 {[%emt 0:02:00]} 21. Nxe7 {[%emt 0:00:28]} Qxe7 {[%emt 0:02:26]} 22. Qxg6 {[%emt 0:02:36]} Rg8 {[%emt 0:01:41]} 23. Qh6 {[%emt 0:01:19]} Qg7 {[%emt 0:01:40]} 24. Qxg7+ {[%emt 0:00:13]} Rxg7 {[%emt 0:00:31]} 25. Nf5 {[%emt 0:00:54]} Rg6 {[%emt 0:00:47]} 26. Nxd6 {[%emt 0:01:05]} Ba6 {[%emt 0:00:59]} 27. Be2 {[%emt 0:02:33]} Rf8 {[%emt 0:01:55]} 28. Bh5 {[%emt 0:04:52]} Rh6 {[%emt 0:00:49]} 29. Nf7+ {[%emt 0:01:31]} Kg7 {[%emt 0:00:23]} 30. Nxh6 {[%emt 0:00:07]} Kxh6 {[%emt 0:00:33]} 31. Bg4 {[%emt 0:00:19]} Nb6 {[%emt 0:00:48]} 32. Re3 {[%emt 0:00:23]} Nc4 {[%emt 0:01:04]} 33. Re2 {[%emt 0:00:32]} b4 {[%emt 0:01:42]} 34. cxb4 {[%emt 0:00:49]} axb4 {[%emt 0:00:53]} 35. Rc2 {[%emt 0:00:44]} Nd6 {[%emt 0:01:45]} 36. Rxc5 {[%emt 0:00:46]} Ncb5 {[%emt 0:02:58]} 37. Re1 {[%emt 0:01:40]} Nd4 {[%emt 0:03:52]} 38. a3 {[%emt 0:00:30]} Rb8 {[%emt 0:03:49]} 39. Bh4 Bd3 {[%emt 3:00:08]} 40. Bxf6 {[%emt 0:04:26]} Nxe4 {[%emt 0:00:00]} 41. Rc8 {[%emt 0:31:08]} Rb5 {[%emt 0:00:00]} 42. Bxe5 {[%emt 0:00:48]} Rxd5 {[%emt 0:00:00]} 43. Re8 {[%emt 0:01:41]} Nc2 {[%emt 0:00:00]} 44. Re6+ {[%emt 0:00:57]} Kg5 {[%emt 0:00:00]} 45. f4+ {[%emt 0:00:43]} Kh4 {[%emt 0:00:00]} 46. Rh6+ {[%emt 0:00:26]} Kg3 {[%emt 0:00:00]} 47. Rd1 {[%emt 0:03:59]} Ne3 {[%emt 0:00:00]} 48. Rxd3 {[%emt 0:00:49]} Rxd3 {[%emt 0:00:00]} 49. f5# 1-0

[Event "DVM U12W 2021"]
[Site "Willingen"]
[Date "2022.08.14"]
[Round "3"]
[White "Marrufo, Emilia"]
[Black "Einacker, Lina"]
[Result "0-1"]
[ECO "D02"]
[WhiteElo "970"]
[BlackElo "1010"]
[Annotator "NA RC"]
[PlyCount "126"]
[EventDate "2022.08.12"]
[EventType "team-tourn"]
[EventRounds "7"]
[EventCountry "GER"]
[SourceTitle "playchess.com"]
[Source "ChessBase"]
[SourceQuality "1"]
[TimeControl "40/5400+30:1800+30"]

1. d4 {[%emt 0:00:07]} d5 {[%emt 0:00:00]} 2. Bf4 {[%emt 0:00:11]} Nf6 {[%emt 0:00:34]} 3. e3 {[%emt 0:00:19]} e6 {[%emt 0:00:57]} 4. Nf3 {[%emt 0:00:39]} Nh5 {[%emt 0:01:59]} 5. Bd3 {[%emt 0:00:59]} Nxf4 {[%emt 0:00:24]} 6. exf4 {[%emt 0:02:59]} Bd6 {[%emt 0:02:15]} 7. g3 {[%emt 0:01:46]} b6 {[%emt 0:01:41]} 8. c3 {[%emt 0:02:03]} Bb7 {[%emt 0:02:46]} 9. Nbd2 {[%emt 0:01:28]} c5 {[%emt 0:05:25]} 10. Qc2 {[%emt 0:04:07]} g6 {[%emt 0:06:58]} 11. O-O {[%emt 0:02:07]} c4 {[%emt 0:02:00]} 12. Be2 {[%emt 0:02:31]} Nd7 {[%emt 0:02:13]} 13. Rfe1 {[%emt 0:04:55]} Nf6 {[%emt 0:06:51]} 14. Ne5 {[%emt 0:02:59]} O-O {[%emt 0:02:53]} 15. Ndf3 {[%emt 0:04:04]} Ne4 {[%emt 0:01:58]} 16. Nd2 {[%emt 0:00:36]} Nxd2 {[%emt 0:00:13]} 17. Qxd2 {[%emt 0:01:45]} a5 {[%emt 0:01:33]} 18. Bf3 {[%emt 0:05:10]} b5 {[%emt 0:03:24]} 19. b3 {[%emt 0:04:49]} Bxe5 {[%emt 0:01:05]} 20. fxe5 {[%emt 0:02:36]} Qe7 {[%emt 0:03:24]} 21. a4 {[%emt 0:01:30]} b4 {[%emt 0:03:16]} 22. Kf1 {[%emt 0:02:24]} Ba6 {[%emt 0:00:49]} 23. Kg1 {[%emt 0:01:18]} Rab8 {[%emt 0:01:06]} 24. Rab1 {[%emt 0:04:49]} bxc3 {[%emt 0:00:53]} 25. Qxc3 {[%emt 0:01:12]} Qb4 {[%emt 0:00:24]} 26. Qxb4 {[%emt 0:01:16]} Rxb4 {[%emt 0:00:51]} 27. Be2 {[%emt 0:01:17]} Ra8 {[%emt 0:01:22]} 28. bxc4 {[%emt 0:01:34]} Bxc4 {[%emt 0:00:57]} 29. Bxc4 {[%emt 0:01:12]} Rxc4 {[%emt 0:01:20]} 30. Ra1 {[%emt 0:00:31]} Rxd4 {[%emt 0:00:58]} 31. Red1 {[%emt 0:00:26]} Rxd1+ {[%emt 0:00:09]} 32. Rxd1 {[%emt 0:00:45]} Rc8 {[%emt 0:00:58]} 33. Kf1 {[%emt 0:00:24]} Rc4 {[%emt 0:00:15]} 34. Ra1 {[%emt 0:01:19]} Re4 {[%emt 0:00:35]} 35. f4 {[%emt 0:00:31]} f6 {[%emt 0:00:52]} 36. exf6 {[%emt 0:00:12]} Kf7 {[%emt 0:00:20]} 37. Kf2 {[%emt 0:00:17]} Kxf6 {[%emt 0:00:57]} 38. Kf3 {[%emt 0:00:50]} e5 {[%emt 0:00:17]} 39. fxe5+ {[%emt 0:00:09]} Kxe5 {[%emt 0:00:35]} 40. Ra3 {[%emt 0:01:44]} Kd4 {[%emt 0:00:39]} 41. h4 {[%emt 0:31:08]} Kc4 {[%emt 0:30:34]} 42. g4 {[%emt 0:01:11]} Re7 {[%emt 0:00:38]} 43. h5 {[%emt 0:00:22]} gxh5 {[%emt 0:00:14]} 44. gxh5 {[%emt 0:00:23]} d4 {[%emt 0:01:25]} 45. Kf2 {[%emt 0:00:21]} d3 {[%emt 0:00:11]} 46. Ra1 {[%emt 0:01:05]} Kc3 {[%emt 0:00:38]} 47. Rc1+ {[%emt 0:00:18]} Kb2 {[%emt 0:00:14]} 48. Rd1 {[%emt 0:00:09]} Kc2 {[%emt 0:00:30]} 49. Ra1 {[%emt 0:00:19]} d2 {[%emt 0:01:20]} 50. h6 d1=Q {[%emt 2:27:37]} 51. Rxd1 {[%emt 0:00:57]} Kxd1 {[%emt 0:00:00]} 52. Kf3 {[%emt 0:00:11]} Re6 {[%emt 0:00:00]} 53. Kf4 {[%emt 0:00:23]} Rxh6 {[%emt 0:00:00]} 54. Ke4 {[%emt 0:00:12]} Rg6 {[%emt 0:00:00]} 55. Kd4 {[%emt 0:00:08]} h5 {[%emt 0:00:00]} 56. Kc5 {[%emt 0:00:08]} Rg5+ {[%emt 0:00:00]} 57. Kb6 {[%emt 0:00:07]} h4 {[%emt 0:00:00]} 58. Ka6 {[%emt 0:00:06]} h3 {[%emt 0:00:00]} 59. Kb6 {[%emt 0:00:05]} h2 {[%emt 0:00:00]} 60. Ka6 {[%emt 0:00:09]} h1=Q {[%emt 0:00:00]} 61. Kb6 {[%emt 0:00:20]} Qh6+ {[%emt 0:00:00]} 62. Kc7 {[%emt 0:00:06]} Rg7+ {[%emt 0:00:00]} 63. Kd8 Qh8# {[%emt 0:04:09]} 0-1

[Event "DVM U12W 2021"]
[Site "Willingen"]
[Date "2022.08.14"]
[Round "3"]
[White "Xiao, Karoline"]
[Black "Hefele, Stefanie"]
[Result "0-1"]
[ECO "D02"]
[WhiteElo "965"]
[BlackElo "1180"]
[Annotator "NA RC"]
[PlyCount "74"]
[EventDate "2022.08.12"]
[EventType "team-tourn"]
[EventRounds "7"]
[EventCountry "GER"]
[SourceTitle "playchess.com"]
[Source "ChessBase"]
[SourceQuality "1"]
[TimeControl "40/5400+30:1800+30"]

1. d4 {[%emt 0:00:10]} d5 {[%emt 0:00:00]} 2. Bf4 {[%emt 0:00:21]} Nf6 {[%emt 0:00:00]} 3. Nf3 {[%emt 0:01:40]} c5 {[%emt 0:00:14]} 4. e3 {[%emt 0:01:11]} Nh5 {[%emt 0:00:36]} 5. Bg3 {[%emt 0:01:30]} Qb6 {[%emt 0:01:36]} 6. b3 {[%emt 0:03:06]} Bf5 {[%emt 0:02:14]} 7. c3 {[%emt 0:01:36]} e6 {[%emt 0:00:37]} 8. Be2 {[%emt 0:03:41]} Be7 {[%emt 0:01:32]} 9. Nbd2 {[%emt 0:01:51]} O-O {[%emt 0:00:32]} 10. O-O {[%emt 0:00:44]} Nxg3 {[%emt 0:02:02]} 11. hxg3 {[%emt 0:03:23]} Nd7 {[%emt 0:05:14]} 12. Ne5 {[%emt 0:00:27]} Nxe5 {[%emt 0:00:13]} 13. dxe5 {[%emt 0:03:49]} f6 {[%emt 0:06:02]} 14. Nf3 {[%emt 0:02:25]} Bg4 {[%emt 0:04:24]} 15. Re1 {[%emt 0:03:33]} Rad8 {[%emt 0:04:42]} 16. Qc2 {[%emt 0:02:32]} Bf5 {[%emt 0:02:56]} 17. Qb2 {[%emt 0:03:38]} c4 {[%emt 0:03:15]} 18. Nd4 {[%emt 0:01:32]} fxe5 {[%emt 0:03:09]} 19. Nf3 {[%emt 0:05:43]} Bd6 {[%emt 0:07:15]} 20. Rad1 {[%emt 0:01:01]} e4 {[%emt 0:00:31]} 21. Nd4 {[%emt 0:04:39]} Bc5 {[%emt 0:08:06]} 22. b4 {[%emt 0:01:58]} e5 {[%emt 0:01:46]} 23. Nxf5 {[%emt 0:00:15]} Rxf5 {[%emt 0:01:17]} 24. Rb1 {[%emt 0:03:04]} Bxe3 {[%emt 0:06:58]} 25. Rf1 {[%emt 0:02:35]} Rxf2 {[%emt 0:03:29]} 26. Rxf2 {[%emt 0:00:11]} Bxf2+ {[%emt 0:00:42]} 27. Kf1 {[%emt 0:00:34]} Bxg3 {[%emt 0:00:41]} 28. Bg4 {[%emt 0:00:18]} Rf8+ {[%emt 0:01:39]} 29. Ke2 {[%emt 0:00:38]} Rf2+ {[%emt 0:00:34]} 30. Kd1 {[%emt 0:00:09]} Rxb2 {[%emt 0:00:18]} 31. Rxb2 {[%emt 0:00:10]} Qg1+ {[%emt 0:01:06]} 32. Ke2 {[%emt 0:00:10]} Qxg2+ {[%emt 0:00:49]} 33. Kd1 {[%emt 0:00:08]} Qxb2 {[%emt 0:00:46]} 34. Be6+ {[%emt 0:00:13]} Kf8 {[%emt 0:00:29]} 35. Bxd5 {[%emt 0:00:22]} Bf4 {[%emt 0:00:12]} 36. Ke1 {[%emt 0:00:13]} Qd2+ {[%emt 0:00:12]} 37. Kf1 {[%emt 0:00:18]} Be3 0-1

[Event "DVM U12W 2021"]
[Site "Willingen"]
[Date "2022.08.14"]
[Round "3"]
[White "Hovhannisyan, Sofia"]
[Black "Sayouf, Rafif"]
[Result "0-1"]
[ECO "C47"]
[WhiteElo "935"]
[BlackElo "1102"]
[Annotator "NA RC"]
[PlyCount "80"]
[EventDate "2022.08.12"]
[EventType "team-tourn"]
[EventRounds "7"]
[EventCountry "GER"]
[SourceTitle "playchess.com"]
[Source "ChessBase"]
[SourceQuality "1"]
[TimeControl "40/5400+30:1800+30"]

1. e4 {[%emt 0:00:23]} e5 {[%emt 0:00:00]} 2. Nf3 {[%emt 0:00:18]} Nc6 {[%emt 0:00:22]} 3. d4 {[%emt 0:00:25]} exd4 {[%emt 0:00:20]} 4. Nxd4 {[%emt 0:00:54]} Nf6 {[%emt 0:01:42]} 5. Nc3 {[%emt 0:00:21]} Bb4 {[%emt 0:09:37]} 6. Nxc6 {[%emt 0:00:52]} bxc6 {[%emt 0:01:57]} 7. Bd2 {[%emt 0:00:37]} Bxc3 {[%emt 0:01:15]} 8. Bxc3 {[%emt 0:02:59]} O-O {[%emt 0:03:11]} 9. Bd3 {[%emt 0:02:50]} Re8 {[%emt 0:08:17]} 10. Bxf6 {[%emt 0:00:22]} Qxf6 {[%emt 0:06:29]} 11. Rb1 {[%emt 0:02:32]} d5 {[%emt 0:02:24]} 12. O-O {[%emt 0:01:57]} dxe4 {[%emt 0:02:12]} 13. Re1 {[%emt 0:00:52]} Bf5 {[%emt 0:00:00]} 14. Qe2 {[%emt 0:00:00]} h6 {[%emt 0:00:00]} 15. Bc4 {[%emt 0:08:30]} Qg6 {[%emt 0:11:50]} 16. Qe3 {[%emt 0:16:52]} a6 {[%emt 0:04:03]} 17. Bb3 {[%emt 0:05:56]} Re7 {[%emt 0:07:12]} 18. Rbd1 {[%emt 0:04:53]} Rae8 {[%emt 0:05:52]} 19. Ba4 {[%emt 0:06:56]} Bd7 {[%emt 0:04:35]} 20. Qc3 {[%emt 0:04:07]} Qe6 {[%emt 0:01:19]} 21. Re3 {[%emt 0:07:00]} g6 {[%emt 0:05:09]} 22. Bb3 {[%emt 0:01:42]} Qf5 {[%emt 0:02:14]} 23. Rh3 {[%emt 0:05:43]} h5 {[%emt 0:03:38]} 24. Re1 {[%emt 0:04:24]} Qe5 {[%emt 0:01:24]} 25. Rg3 {[%emt 0:00:15]} Qxc3 {[%emt 0:01:05]} 26. Rxc3 {[%emt 0:02:16]} Re5 {[%emt 0:01:29]} 27. Rg3 {[%emt 0:00:28]} Kg7 {[%emt 0:02:07]} 28. Ba4 {[%emt 0:03:15]} Rb8 {[%emt 0:02:24]} 29. b3 {[%emt 0:01:25]} Rb6 {[%emt 0:01:06]} 30. Rd1 {[%emt 0:01:15]} Bf5 {[%emt 0:01:13]} 31. Rd4 {[%emt 0:00:18]} Rd5 {[%emt 0:01:58]} 32. Rxd5 {[%emt 0:00:03]} cxd5 {[%emt 0:00:36]} 33. Rc3 {[%emt 0:01:03]} Rd6 {[%emt 0:01:17]} 34. Rxc7 {[%emt 0:00:24]} d4 {[%emt 0:01:52]} 35. Kf1 {[%emt 0:00:09]} d3 {[%emt 0:01:42]} 36. Ke1 {[%emt 0:00:14]} d2+ {[%emt 0:01:55]} 37. Kd1 {[%emt 0:00:45]} Bg4+ {[%emt 0:00:36]} 38. f3 {[%emt 0:00:33]} exf3 {[%emt 0:01:14]} 39. Bc6 {[%emt 0:00:11]} fxg2+ {[%emt 0:00:45]} 40. Bf3 Bxf3# {[%emt 0:11:43]} 0-1

[Event "DVM U12W 2021"]
[Site "Willingen"]
[Date "2022.08.14"]
[Round "3"]
[White "Ramien, Eva"]
[Black "Eger, Nora"]
[Result "1/2-1/2"]
[ECO "B08"]
[WhiteElo "929"]
[BlackElo "1248"]
[Annotator "NA RC"]
[PlyCount "94"]
[EventDate "2022.08.12"]
[EventType "team-tourn"]
[EventRounds "7"]
[EventCountry "GER"]
[SourceTitle "playchess.com"]
[Source "ChessBase"]
[SourceQuality "1"]
[TimeControl "40/5400+30:1800+30"]

1. e4 {[%emt 0:00:04]} d6 {[%emt 0:00:05]} 2. d4 {[%emt 0:00:06]} g6 {[%emt 0:00:06]} 3. Nc3 {[%emt 0:00:10]} Bg7 {[%emt 0:00:10]} 4. Nf3 {[%emt 0:00:15]} Nf6 {[%emt 0:00:24]} 5. h3 {[%emt 0:00:10]} Nbd7 {[%emt 0:00:29]} 6. Be3 {[%emt 0:00:21]} e5 {[%emt 0:01:30]} 7. dxe5 {[%emt 0:00:18]} dxe5 {[%emt 0:01:38]} 8. Qd2 {[%emt 0:01:44]} a6 {[%emt 0:04:54]} 9. Be2 {[%emt 0:01:52]} Qe7 {[%emt 0:04:38]} 10. O-O {[%emt 0:03:20]} O-O {[%emt 0:01:21]} 11. Bh6 {[%emt 0:00:11]} b6 {[%emt 0:04:23]} 12. Bxg7 {[%emt 0:00:45]} Kxg7 {[%emt 0:00:08]} 13. a3 {[%emt 0:01:09]} Bb7 {[%emt 0:03:04]} 14. Bd3 {[%emt 0:00:28]} Rad8 {[%emt 0:01:47]} 15. Qe2 {[%emt 0:02:31]} Nc5 {[%emt 0:02:53]} 16. b4 {[%emt 0:01:25]} Nxd3 {[%emt 0:01:58]} 17. cxd3 {[%emt 0:00:19]} Rfe8 {[%emt 0:04:11]} 18. Rfd1 {[%emt 0:01:55]} Rd6 {[%emt 0:10:15]} 19. d4 {[%emt 0:02:44]} Red8 {[%emt 0:17:02]} 20. dxe5 {[%emt 0:01:33]} Rxd1+ {[%emt 0:00:25]} 21. Nxd1 {[%emt 0:01:23]} Nxe4 {[%emt 0:05:08]} 22. Qe3 {[%emt 0:02:44]} h6 {[%emt 0:04:22]} 23. Nc3 {[%emt 0:00:30]} Nxc3 {[%emt 0:03:13]} 24. Qxc3 {[%emt 0:00:22]} Bxf3 {[%emt 0:01:53]} 25. Qxf3 {[%emt 0:01:30]} Qxe5 {[%emt 0:01:10]} 26. Rf1 {[%emt 0:01:11]} Qd5 {[%emt 0:06:44]} 27. Qc3+ {[%emt 0:01:11]} Kg8 {[%emt 0:03:00]} 28. Qxc7 {[%emt 0:00:24]} Qd6 {[%emt 0:01:50]} 29. Qc2 {[%emt 0:01:07]} b5 {[%emt 0:02:16]} 30. Qb3 {[%emt 0:01:44]} Qd5 {[%emt 0:02:04]} 31. Qxd5 {[%emt 0:06:10]} Rxd5 {[%emt 0:00:10]} 32. Ra1 {[%emt 0:01:41]} Rd4 {[%emt 0:00:22]} 33. Kf1 {[%emt 0:00:32]} Kg7 {[%emt 0:01:11]} 34. Ke2 {[%emt 0:00:14]} Kf6 {[%emt 0:00:40]} 35. Rc1 {[%emt 0:01:24]} Rd6 {[%emt 0:00:51]} 36. Rc5 {[%emt 0:00:53]} Ke6 {[%emt 0:01:47]} 37. Rc3 {[%emt 0:01:32]} Kf6 {[%emt 0:01:14]} 38. Rf3+ {[%emt 0:00:46]} Kg7 {[%emt 0:00:31]} 39. g3 {[%emt 0:01:55]} Rf6 {[%emt 0:00:55]} 40. Ke3 {[%emt 0:01:16]} Rxf3+ {[%emt 0:00:22]} 41. Kxf3 {[%emt 0:30:19]} Kf6 {[%emt 0:30:57]} 42. h4 {[%emt 0:00:18]} g5 {[%emt 0:03:13]} 43. hxg5+ {[%emt 0:01:09]} hxg5 {[%emt 0:01:33]} 44. Kg4 {[%emt 0:00:17]} Kg6 {[%emt 0:00:31]} 45. f4 {[%emt 0:00:36]} f5+ {[%emt 0:04:00]} 46. Kf3 {[%emt 0:00:40]} gxf4 {[%emt 0:01:10]} 47. gxf4 {[%emt 0:03:23]} Kf6 {[%emt 0:00:41]} 1/2-1/2

[Event "DVM U12W 2021"]
[Site "Willingen"]
[Date "2022.08.14"]
[Round "3"]
[White "Grey, Paula"]
[Black "Achilles, Rosa"]
[Result "1/2-1/2"]
[ECO "C13"]
[WhiteElo "854"]
[BlackElo "1026"]
[Annotator "NA RC"]
[PlyCount "79"]
[EventDate "2022.08.12"]
[EventType "team-tourn"]
[EventRounds "7"]
[EventCountry "GER"]
[SourceTitle "playchess.com"]
[Source "ChessBase"]
[SourceQuality "1"]
[TimeControl "40/5400+30:1800+30"]

1. e4 {[%emt 0:00:10]} e6 2. d4 {[%emt 0:00:28]} d5 {[%emt 0:01:16]} 3. Nc3 {[%emt 0:00:46]} dxe4 {[%emt 0:00:34]} 4. Nxe4 {[%emt 0:00:43]} Nf6 {[%emt 0:00:32]} 5. Bg5 {[%emt 0:00:13]} Be7 {[%emt 0:00:51]} 6. Nxf6+ {[%emt 0:00:15]} Bxf6 {[%emt 0:00:49]} 7. Be3 {[%emt 0:00:41]} O-O {[%emt 0:00:43]} 8. Nf3 {[%emt 0:02:04]} Re8 {[%emt 0:02:13]} 9. Bc4 {[%emt 0:01:33]} Nc6 {[%emt 0:03:00]} 10. O-O {[%emt 0:01:47]} Rb8 {[%emt 0:01:58]} 11. c3 {[%emt 0:01:22]} Na5 {[%emt 0:01:25]} 12. b3 {[%emt 0:00:21]} Nxc4 {[%emt 0:00:43]} 13. bxc4 {[%emt 0:00:24]} b6 {[%emt 0:01:59]} 14. Qa4 {[%emt 0:01:21]} Ra8 {[%emt 0:02:26]} 15. Qb5 {[%emt 0:01:10]} Bd7 {[%emt 0:01:00]} 16. Qa6 {[%emt 0:00:42]} Qc8 {[%emt 0:01:14]} 17. Qxc8 {[%emt 0:00:56]} Bxc8 {[%emt 0:01:26]} 18. Rfd1 {[%emt 0:01:17]} g6 {[%emt 0:01:44]} 19. Rdc1 {[%emt 0:00:44]} Ba6 {[%emt 0:00:35]} 20. c5 {[%emt 0:00:54]} b5 {[%emt 0:01:58]} 21. Bh6 {[%emt 0:03:07]} Bb7 {[%emt 0:01:50]} 22. Ne5 {[%emt 0:01:15]} Bxe5 {[%emt 0:00:37]} 23. dxe5 {[%emt 0:00:55]} Red8 {[%emt 0:00:20]} 24. Rd1 {[%emt 0:01:06]} Bc6 {[%emt 0:00:49]} 25. Rd2 {[%emt 0:01:35]} Rd5 {[%emt 0:00:48]} 26. Rad1 {[%emt 0:00:15]} Rad8 {[%emt 0:00:44]} 27. g3 {[%emt 0:03:55]} Rxd2 {[%emt 0:00:21]} 28. Rxd2 {[%emt 0:03:06]} Rd5 {[%emt 0:02:14]} 29. Rxd5 Bxd5 {[%emt 1:06:27]} 30. a3 {[%emt 0:03:20]} c6 {[%emt 0:00:00]} 31. h4 {[%emt 0:00:14]} a6 {[%emt 0:00:00]} 32. Bf4 {[%emt 0:00:56]} h5 {[%emt 0:00:00]} 33. Bg5 {[%emt 0:00:17]} Kf8 {[%emt 0:00:00]} 34. Bh6+ {[%emt 0:00:17]} Ke8 {[%emt 0:00:00]} 35. Bg5 {[%emt 0:00:11]} Kd7 {[%emt 0:00:00]} 36. f4 {[%emt 0:00:23]} Kc8 {[%emt 0:00:00]} 37. Kh2 {[%emt 0:00:19]} Bf3 {[%emt 0:00:00]} 38. Be7 {[%emt 0:00:11]} Kb7 {[%emt 0:00:00]} 39. Bd8 {[%emt 0:01:14]} Kc8 {[%emt 0:00:00]} 40. Ba5 1/2-1/2